[Event "37th ECCC 2022"]
[Site "Mayrhofen"]
[Date "2022.10.04"]
[Round "2.16"]
[White "Ciolek, Andreas"]
[Black "Movsesian, Sergei"]
[Result "0-1"]
[ECO "A46"]
[WhiteElo "2301"]
[BlackElo "2619"]
[Annotator "TA"]
[PlyCount "104"]
[EventDate "2022.10.03"]
[EventType "team-tourn"]
[EventCountry "AUT"]
[SourceTitle "playchess.com"]
[Source "ChessBase"]
[SourceQuality "1"]
[TimeControl "40/5400+30:1800+30"]

{[%evp 11,104,0,10,0,0,0,18,8,18,20,16,-12,0,-7,20,2,13,-1,16,14,38,4,3,-7,8,-19,-16,-11,0,-29,7,8,5,12,12,5,11,13,20,0,0,0,0,-52,-45,-42,-45,-49,-7,-15,0,-89,-47,-55,-14,-25,-32,-11,0,0,0,-57,-45,-53,-54,-163,-161,-145,-150,-193,0,-491,-499,-488,-444,-606,-612,-1014,-1007,-954,-781,-1239,-1249,-1225,-1228,-1085,-1040,-29955,-29962,-29956,-29954,-4702,-4133,-29988,-29989]} 1. d4 {[%emt 0:00:06]} Nf6 {[%emt 0:00:50]} 2. Nf3 {[%emt 0:00:08]} d5 {[%emt 0:01:40]} 3. g3 {[%emt 0:03:19]} c6 {[%emt 0:01:30]} 4. Bg2 {[%emt 0:00:54]} Bf5 {[%emt 0:03:36]} 5. c4 {[%emt 0:00:36]} e6 {[%emt 0:00:15]} 6. Nc3 {[%emt 0:00:48]} h6 {[%emt 0:01:57]} 7. Qb3 {[%emt 0:01:08] D11: Slav Defence: 3 Nf3 sidelines and 3...Nf6 4 e3 Bg4.} Qb6 {[%emt 0:03:16]} 8. c5 {[%emt 0:01:37]} Qc7 {[%emt 0:02:13]} 9. Bf4 {[%emt 0:11:06] The position is equal.} Qc8 {[%emt 0:02:10]} 10. O-O {[%emt 0:01:34]} Be7 {[%emt 0:05:46]} 11. Qd1 {[%emt 0:03:33]} O-O {[%emt 0:01:43]} 12. b4 {[%emt 0:02:14]} Ne4 {[%emt 0:03:34]} 13. Qb3 {[%emt 0:07:43]} Nd7 {[%emt 0:07:57] [#]} 14. a4 $146 {[%emt 0:04:17]} ({Predecessor:} 14. Nxe4 Bxe4 15. Nd2 Bxg2 16. Kxg2 Bf6 17. Qc3 Re8 18. Be5 Be7 19. e4 Bf8 20. Bf4 {1-0 (55) Boswell,J (2012)-Verma,A (2170) Newcastle on Tyne 2021}) 14... g5 {[%emt 0:09:33]} 15. Be3 {[%emt 0:01:57]} Bf6 {[%emt 0:00:35]} 16. Rfd1 {[%emt 0:06:20]} Bg7 {[%emt 0:03:40]} 17. Rac1 {[%emt 0:02:19]} Bg6 {[%emt 0:04:49]} 18. Ne1 {[%emt 0:09:21]} Nxc3 {[%emt 0:15:10]} 19. Qxc3 {[%emt 0:01:11]} Qc7 {[%emt 0:02:29]} 20. Bh3 {[%emt 0:07:36]} f5 {[%emt 0:02:27]} 21. f4 {[%emt 0:01:50]} Nf6 {[%emt 0:01:09]} 22. Bg2 {[%emt 0:03:47]} Ne4 {[%emt 0:04:08]} 23. Qb2 {[%emt 0:02:07]} h5 {[%emt 0:04:51]} 24. Nd3 {[%emt 0:03:21]} h4 {[%emt 0:01:18]} 25. Bxe4 {[%emt 0:00:52]} fxe4 {[%emt 0:01:30]} 26. Ne5 {[%emt 0:00:22]} Bf5 {[%emt 0:06:00]} 27. Kf2 {[%emt 0:04:01]} ({Don't play} 27. fxg5 Bxe5 28. dxe5 hxg3 29. hxg3 Qh7 $17) (27. gxh4 $11 gxh4 28. b5) 27... Bxe5 $15 {[%emt 0:03:13]} 28. dxe5 {[%emt 0:03:21]} Qh7 {[%emt 0:03:15] And now ...hxg3+ would win.} 29. Rg1 {[%emt 0:02:20]} Rf7 {[%emt 0:00:57]} 30. Qd4 {[%emt 0:01:25]} Bg4 {[%emt 0:01:36]} 31. Rcf1 {[%emt 0:03:41]} (31. Ke1 $1 $11) 31... hxg3+ {[%emt 0:00:54]} 32. hxg3 {[%emt 0:00:24]} Qh2+ {[%emt 0:00:16]} 33. Rg2 {[%emt 0:00:48]} Qh3 $36 {[%emt 0:00:05][%cal Og4e2][%mdl 2048] Strongly threatening ...Bxe2! Black is pushing.} 34. Rfg1 {[%emt 0:00:51]} Rh7 {[%emt 0:01:11]} 35. Ke1 {[%emt 0:01:56]} a5 {[%emt 0:00:27]} 36. b5 {[%emt 0:00:24]} ({White should try} 36. bxa5 $11 Rxa5 37. Kd2) 36... cxb5 {[%emt 0:00:34]} 37. axb5 {[%emt 0:00:06]} a4 {[%emt 0:00:01]} 38. Kd2 {[%emt 0:01:57]} (38. fxg5 $15 a3 39. g6) 38... a3 $19 {[%emt 0:00:40] Threatens to win with ...a2.} 39. Rf2 {[%emt 0:01:16] [#]} a2 $1 {[%emt 0:00:41][%cal Oh3h1] ...Qh1! is the strong threat.} 40. fxg5 {[%emt 0:01:29] [#]} Qh1 $2 {[%emt 0:01:20] Really sharp!} 41. Rff1 $2 {[%emt 0:07:28][%mdl 8192]} ({Not} 41. Rxh1 $2 Rxh1 42. c6 a1=Q $19) (41. g6 $11 {and White is okay.} Rh2 42. Qa1 (42. Rxh1 Rxh1 43. Bh6 Rxh6 $17) 42... Rxf2 43. Rxh1 Rxe2+ 44. Kc3 Rxe3+ 45. Kb4) 41... Qh2 {[%emt 0:04:56]} 42. Bf2 {[%emt 0:02:56]} Qh5 {[%emt 0:04:01]} 43. c6 {[%emt 0:04:41]} bxc6 {[%emt 0:03:24]} 44. bxc6 {[%emt 0:00:09]} Bxe2 {[%emt 0:00:47]} 45. g6 {[%emt 0:04:38]} Rc7 {[%emt 0:01:17]} 46. g4 {[%emt 0:03:00]} Bxf1 {[%emt 0:01:23]} 47. gxh5 {[%emt 0:01:02]} a1=Q {[%emt 0:00:06]} 48. Qxa1 {[%emt 0:00:15]} Rxa1 {[%emt 0:00:04]} 49. h6 {[%emt 0:03:44]} Ra2+ {[%emt 0:01:27]} 50. Ke1 {[%emt 0:01:54] [#]} Rxc6 $1 {[%emt 0:03:41][%cal Rc6c1]} 51. Kxf1 {[%emt 0:01:48]} Rc1+ {[%emt 0:00:05]} 52. Be1 {[%emt 0:01:59]} e3 {[%emt 0:00:13] Weighted Error Value: White=0.96/Black=0.32} 0-1

[Event "37th ECCC 2022"]
[Site "Mayrhofen"]
[Date "2022.10.04"]
[Round "2.17"]
[White "Cornette, Matthieu"]
[Black "Hess, Max"]
[Result "1-0"]
[ECO "B10"]
[WhiteElo "2572"]
[BlackElo "2361"]
[Annotator "TA"]
[PlyCount "83"]
[EventDate "2022.10.03"]
[EventType "team-tourn"]
[EventCountry "AUT"]
[SourceTitle "playchess.com"]
[Source "ChessBase"]
[SourceQuality "1"]
[TimeControl "40/5400+30:1800+30"]

{[%evp 10,83,27,27,28,28,20,28,34,0,0,0,14,13,14,14,25,25,10,19,32,29,27,32,29,30,30,30,66,60,57,64,60,61,60,32,40,39,58,47,54,59,61,25,23,22,59,58,70,64,66,65,104,89,115,124,136,144,259,259,246,256,267,239,320,302,346,261,392,392,464,444,488,470,464,428]} 1. e4 {[%emt 0:00:06]} c6 {[%emt 0:00:10]} 2. Nf3 {[%emt 0:00:51]} d5 {[%emt 0:00:25]} 3. Nc3 {[%emt 0:00:08]} dxe4 {[%emt 0:01:16]} 4. Nxe4 {[%emt 0:00:07]} Nf6 {[%emt 0:00:03]} 5. Qe2 {[%emt 0:00:19]} Nxe4 {[%emt 0:00:13]} 6. Qxe4 {[%emt 0:00:05]} Nd7 {[%emt 0:00:04] B11: Caro-Kann: Two Knights Variation.} 7. Bc4 {[%emt 0:00:47] Hoping for Ng5.} Nf6 {[%emt 0:00:09] [#]} 8. Ne5 $1 {[%emt 0:00:19][%csl Ge5][%cal Rc4f7]} e6 {[%emt 0:00:04] White has an edge.} 9. Qf4 {[%emt 0:00:22]} b5 {[%emt 0:10:12]} 10. Be2 {[%emt 0:00:16]} (10. Nxc6 $2 Qb6 11. Ne5 bxc4 12. Nxc4 Qc6 $19) 10... Bd6 {[%emt 0:03:14]} 11. d4 {[%emt 0:00:41]} O-O {[%emt 0:03:20]} 12. Qg3 {[%emt 0:00:14] [#]} Qc7 $146 {[%emt 0:11:04]} ({Predecessor:} 12... Ne4 13. Qd3 f5 14. Nxc6 Qc7 15. Ne5 a5 16. f3 Nf6 17. O-O Ba6 18. Bf4 Rfd8 {1-0 (76) Kosteniuk,A (2472)-Gunina,V (2437) Krasnaya Polyana 2021}) 13. Bh6 {[%emt 0:00:42][%csl Gh6][%cal Rg3g7] [#]} Ne8 {[%emt 0:02:24] Threatens to win with ...f6.} 14. Bf4 $1 {[%emt 0:00:12]} Nf6 {[%emt 0:04:52] aiming for ...Nd5.} 15. Nd3 {[%emt 0:01:01]} Bxf4 {[%emt 0:08:08]} 16. Qxf4 {[%emt 0:00:16]} Qxf4 {[%emt 0:00:23]} 17. Nxf4 {[%emt 0:00:07]} Rd8 {[%emt 0:06:28]} 18. O-O-O {[%emt 0:07:58]} g5 {[%emt 0:11:39]} 19. Nh3 {[%emt 0:07:11]} h6 {[%emt 0:02:11]} 20. f4 {[%emt 0:00:26]} g4 {[%emt 0:00:46]} 21. Nf2 {[%emt 0:00:41]} h5 {[%emt 0:00:31]} 22. Rhe1 {[%emt 0:07:10]} a5 {[%emt 0:06:25]} 23. Bf1 {[%emt 0:24:11]} Ba6 {[%emt 0:04:27]} 24. c3 {[%emt 0:07:48]} Kg7 {[%emt 0:12:33]} 25. g3 {[%emt 0:00:55]} Rh8 {[%emt 0:02:45]} 26. Bd3 {[%emt 0:13:27]} b4 {[%emt 0:03:21]} 27. c4 {[%emt 0:05:15]} Rhd8 {[%emt 0:03:26]} 28. Bf1 {[%emt 0:00:15]} Nd7 {[%emt 0:01:05]} 29. b3 {[%emt 0:00:59]} Bb7 {[%emt 0:01:17]} 30. Bg2 {[%emt 0:01:51]} a4 {[%emt 0:00:16]} 31. Kb2 {[%emt 0:00:25] White is more active.} Nf6 {[%emt 0:01:15]} 32. Nd3 {[%emt 0:04:50]} Rxd4 {[%emt 0:00:06]} 33. Nxb4 {[%emt 0:00:32]} Rad8 {[%emt 0:00:58]} (33... Rxd1 $16 {is a better defense.} 34. Rxd1 a3+ 35. Kc2 Rc8) 34. Rxd4 $18 {[%emt 0:00:47]} Rxd4 {[%emt 0:00:01]} 35. Kc3 {[%emt 0:00:27] Inhibits Rd2.} ({Worse is} 35. Bxc6 Bxc6 36. Nxc6 Rd6 $11) 35... Rd6 {[%emt 0:01:23][%cal Oc6c5]} 36. Nd3 {[%emt 0:01:08]} ({Don't do} 36. bxa4 $6 c5 37. Bxb7 cxb4+ 38. Kc2 Rb6 $18) 36... axb3 {[%emt 0:00:07]} 37. axb3 {[%emt 0:00:05][%cal Ba2b3,Bb3b4][%mdl 32]} Rd8 {[%emt 0:01:01]} 38. Nc5 {[%emt 0:01:35]} Bc8 {[%emt 0:00:43]} (38... Ba8 {keeps fighting.} 39. Rxe6 h4) 39. Bxc6 {[%emt 0:00:23]} h4 {[%emt 0:00:03]} 40. b4 {[%emt 0:00:33] White is clearly winning.} hxg3 {[%emt 0:00:12]} 41. hxg3 {[%emt 0:30:05]} Nh5 {[%emt 0:31:20]} 42. Rg1 {[%emt 0:00:59] Weighted Error Value: White=0.04 (flawless) /Black=0.21 (precise)} 1-0

[Event "37th ECCC 2022"]
[Site "Mayrhofen"]
[Date "2022.10.04"]
[Round "2.18"]
[White "Kruckenhauser, Arthur"]
[Black "Terekhov, Andrey"]
[Result "1-0"]
[ECO "B40"]
[WhiteElo "2327"]
[BlackElo "2308"]
[Annotator "TA"]
[PlyCount "114"]
[EventDate "2022.10.03"]
[EventType "team-tourn"]
[EventCountry "AUT"]
[SourceTitle "playchess.com"]
[Source "ChessBase"]
[SourceQuality "1"]
[TimeControl "40/5400+30:1800+30"]

{[%evp 9,114,5,9,16,13,0,0,0,0,-7,-7,-43,-32,-39,-39,-40,-46,-37,-46,-50,-44,-43,-29,-28,-22,-32,3,0,31,42,45,51,86,59,53,67,79,77,98,118,100,41,150,114,314,322,282,302,293,285,286,245,192,177,179,179,183,107,105,100,100,100,100,100,95,93,89,91,182,182,181,179,167,184,164,158,224,223,284,251,235,243,264,264,264,264,257,220,274,239,325,318,302,302,494,472,843,843,843,833,644,568,29982,29983,29983,29984,29989]} 1. e4 {[%emt 0:00:04]} c5 {[%emt 0:00:04]} 2. Nf3 {[%emt 0:00:17]} e6 {[%emt 0:00:07]} 3. g3 {[%emt 0:00:43]} Nc6 {[%emt 0:00:49]} 4. Bg2 {[%emt 0:00:17]} Nf6 {[%emt 0:00:13]} 5. Qe2 {[%emt 0:00:14]} e5 {[%emt 0:01:43]} 6. O-O {[%emt 0:01:07] B40: Sicilian: 2...e6, Unusual lines.} Be7 {[%emt 0:00:44]} 7. c3 {[%emt 0:00:07]} O-O {[%emt 0:00:18]} 8. Na3 $1 {[%emt 0:00:33] The position is equal. The main line 8.Na3 scores better than 8.Rd1.} Re8 {[%emt 0:02:38]} 9. Nc2 {[%emt 0:09:09]} Bf8 {[%emt 0:01:32]} 10. d3 {[%emt 0:00:57]} d5 {[%emt 0:02:40] [#]} 11. Bg5 $146 {[%emt 0:04:45]} ({Predecessor:} 11. exd5 Nxd5 12. Ne3 Nxe3 13. fxe3 Be6 14. b3 a5 15. Qc2 f6 16. Bb2 a4 17. bxa4 {½-½ (37) Bentsen,H (2078)-Vestby Ellingsen,M (2370) Fagernes 2022}) 11... d4 {[%emt 0:04:53]} 12. cxd4 {[%emt 0:05:11]} cxd4 {[%emt 0:00:36]} 13. Nd2 {[%emt 0:00:34]} h6 {[%emt 0:07:02]} 14. Bxf6 {[%emt 0:01:23]} Qxf6 {[%emt 0:00:22]} 15. f4 {[%emt 0:01:53]} exf4 {[%emt 0:04:05]} 16. gxf4 {[%emt 0:05:47]} Qd8 {[%emt 0:16:57]} 17. Kh1 {[%emt 0:07:13]} f5 {[%emt 0:05:17]} 18. Qh5 {[%emt 0:08:58]} Ne7 {[%emt 0:17:48]} 19. Nb3 {[%emt 0:05:49]} g6 {[%emt 0:01:34]} 20. Qf3 {[%emt 0:02:36]} Bg7 {[%emt 0:11:28]} 21. Qf2 {[%emt 0:11:31][%cal Rb3d4] White is more active.} fxe4 {[%emt 0:06:58]} 22. dxe4 {[%emt 0:00:37][%cal Rc2d4]} Nc6 {[%emt 0:00:42]} 23. Rad1 {[%emt 0:04:03][%cal Rb3d4]} Bg4 {[%emt 0:09:34]} 24. Rd2 {[%emt 0:03:47]} (24. Rd3 Be6 $14) 24... d3 {[%emt 0:00:34]} 25. Qg3 {[%emt 0:03:04]} (25. Nc1 $1 $16) 25... Qc8 {[%emt 0:01:36]} (25... Be2 $14 26. Re1 (26. Qxg6 $2 Qh4 $17) 26... Qb6) 26. Qxd3 {[%emt 0:02:08] Qg3 is the strong threat.} Bxb2 $2 {[%emt 0:00:44]} (26... Rd8 $16 27. Qg3 Rxd2 28. Nxd2 Qd7) 27. Qg3 $18 {[%emt 0:04:13]} ({Not} 27. f5 Bf6 28. Ne3 (28. fxg6 Bg7 $16) (28. h3 Bh5 $16) 28... Bh5 $18) 27... Bg7 {[%emt 0:01:09]} 28. Ne3 {[%emt 0:00:25]} Bh5 {[%emt 0:00:43]} 29. Bh3 {[%emt 0:05:15]} Qb8 {[%emt 0:00:03]} 30. Nc5 {[%emt 0:03:21]} Nd4 {[%emt 0:01:31]} 31. e5 {[%emt 0:00:29]} Qc7 {[%emt 0:00:23]} 32. Ne4 {[%emt 0:02:37] Pair of Knights!} ({Don't do} 32. Rxd4 Qxc5 33. Rd5 Qc7 $16) 32... Rad8 {[%emt 0:00:06]} 33. Nd6 {[%emt 0:03:39]} ({White should play} 33. Bg4 $18 {aiming for Bxh5.} Bxg4 34. Nxg4) 33... Rxd6 $16 {[%emt 0:00:05]} 34. exd6 {[%emt 0:00:03]} Qxd6 {[%emt 0:00:06]} 35. Bg2 {[%emt 0:01:07]} b6 {[%emt 0:01:26]} 36. Nc2 $36 {[%emt 0:01:34][%mdl 2048] Prevents Qb4. Strongly threatening Nxd4. White is in control.} Re2 {[%emt 0:00:31]} 37. Qd3 {[%emt 0:02:26]} Rxd2 {[%emt 0:00:35]} 38. Qxd2 {[%emt 0:00:03]} Nf5 {[%emt 0:00:17]} (38... Bg4 $16) 39. Qxd6 $18 {[%emt 0:01:14]} Nxd6 {[%emt 0:00:03]} 40. Bf3 {[%emt 0:00:12] Prevents Be2.} Bxf3+ {[%emt 0:00:29]} 41. Rxf3 {[%emt 0:30:04][%mdl 4096] Endgame KRN-KBN} Kf7 {[%emt 0:10:29]} 42. Nb4 {[%emt 0:00:00]} Ke6 {[%emt 0:05:51]} (42... Nc4 $16 43. Nc6 a6 44. Ne5+ Nxe5 45. fxe5+ Ke6) 43. Re3+ {[%emt 0:00:00]} Kd7 {[%emt 0:08:50]} 44. Nd5 {[%emt 0:00:00] And now Re7+ would win.} Nf5 {[%emt 0:00:24] Inhibits Re7+.} 45. Ra3 {[%emt 0:00:00]} Kc6 {[%emt 0:01:23] [#]} 46. Ne3 {[%emt 0:00:00]} Bb2 {[%emt 0:00:35]} 47. Rb3 {[%emt 0:00:00] Threatens to win with Nxf5.} Nxe3 {[%emt 0:00:45]} 48. Rxb2 {[%emt 0:00:00] Hoping for Re2. KR-KN} Nd5 {[%emt 0:03:56] [#]} 49. Rf2 {[%emt 0:00:00]} b5 {[%emt 0:00:48]} 50. Kg2 {[%emt 0:00:00]} b4 {[%emt 0:00:55]} 51. Kf3 {[%emt 0:00:00]} Nc3 $2 {[%emt 0:01:56]} (51... Kd6 52. Rg2 Ne7 53. Rd2+ Ke6) 52. Rg2 {[%emt 0:00:00]} Kc5 {[%emt 0:01:34]} (52... Kd5 $142 53. Ke3 Kc4 54. Rxg6 Nxa2) 53. Rxg6 {[%emt 0:00:00]} Nxa2 {[%emt 0:00:17]} 54. f5 {[%emt 0:00:00][%cal Bf4f5,Bf5f6][%mdl 32]} b3 {[%emt 0:00:24]} 55. Rg2 {[%emt 0:00:59] Threatening mate with f6.} a5 {[%emt 0:00:51]} 56. f6 {[%emt 0:01:10]} Kd6 {[%emt 0:00:27]} 57. Re2 {[%emt 0:00:07]} Kd5 {Weighted Error Value: White=0.10 (very precise) /Black=0.36} 1-0

[Event "37th ECCC 2022"]
[Site "Mayrhofen"]
[Date "2022.10.04"]
[Round "2.19"]
[White "Kjartansson, Gudmundur"]
[Black "Erigaisi Arjun"]
[Result "1/2-1/2"]
[ECO "A20"]
[WhiteElo "2456"]
[BlackElo "2728"]
[Annotator "TA"]
[PlyCount "133"]
[EventDate "2022.10.03"]
[EventType "team-tourn"]
[EventCountry "AUT"]
[SourceTitle "playchess.com"]
[Source "ChessBase"]
[SourceQuality "1"]
[TimeControl "40/5400+30:1800+30"]

{[%evp 9,133,13,20,10,0,9,18,12,31,21,29,10,13,12,8,4,16,11,8,16,19,8,2,0,0,0,0,14,11,6,20,18,16,10,23,0,0,5,41,0,0,0,0,0,0,0,0,0,0,0,8,0,10,0,8,0,0,0,0,0,0,0,0,0,0,0,0,0,0,0,0,0,0,0,0,0,0,0,0,0,0,0,0,0,0,0,0,0,0,0,0,0,0,0,0,0,0,0,0,0,0,0,0,0,0,0,0,0,0,0,0,0,0,0,0,0,0,0,0,0,0,0,0,0,0,0]} 1. c4 {[%emt 0:00:04]} e5 {[%emt 0:00:30]} 2. g3 {[%emt 0:00:05]} Nf6 {[%emt 0:00:06]} 3. Bg2 {[%emt 0:00:10]} Bc5 {[%emt 0:00:17]} 4. Nc3 {[%emt 0:02:37]} c6 {[%emt 0:00:07]} 5. e3 {[%emt 0:01:01]} Bb6 {[%emt 0:00:14]} 6. d4 {[%emt 0:01:13] A23: English Opening: 1...e5 2 Nc3 Nf6 3 g3 c6.} exd4 {[%emt 0:01:36]} 7. exd4 {[%emt 0:00:05]} O-O {[%emt 0:00:14]} 8. Nge2 {[%emt 0:00:27] Active counter play!} d6 {[%emt 0:02:05]} 9. O-O {[%emt 0:00:59]} Re8 {[%emt 0:00:07] [#]} 10. Bf4 $146 {[%emt 0:05:34]} ({Predecessor:} 10. h3 d5 11. cxd5 Nxd5 12. Nxd5 cxd5 13. Nf4 Nc6 14. Be3 Be6 15. Rc1 Ne7 16. Qd2 {½-½ (30) Firsching,G (2502)-Koenig,U (2451) Remote email 2014}) 10... Be6 {[%emt 0:08:45]} 11. Qd3 {[%emt 0:03:52]} Na6 {[%emt 0:05:27][%cal Bb8a6,Ba6c7,Bc7e6][%mdl 32]} 12. a3 {[%emt 0:01:07] Prevents Nb4.} Qd7 {[%emt 0:00:41]} 13. Rfe1 {[%emt 0:03:37]} d5 {[%emt 0:03:31]} 14. c5 {[%emt 0:04:24]} Bd8 {[%emt 0:00:25]} 15. b4 {[%emt 0:11:14]} Nc7 {[%emt 0:02:06]} 16. a4 {[%emt 0:03:59]} (16. Be5 {seems wilder.} Ng4 17. Bd6 Nh6 18. a4) 16... Bf5 {[%emt 0:04:06]} 17. Qd2 {[%emt 0:01:17]} Ne6 {[%emt 0:02:17]} 18. Bd6 {[%emt 0:02:35]} Be7 {[%emt 0:03:28]} 19. Bxe7 {[%emt 0:01:11]} Rxe7 {[%emt 0:00:07]} 20. Nf4 {[%emt 0:00:49]} Rae8 {[%emt 0:00:47]} 21. Nxe6 {[%emt 0:09:51]} Rxe6 {[%emt 0:00:25]} 22. Rxe6 {[%emt 0:02:33]} Qxe6 {[%emt 0:00:07]} 23. b5 {[%emt 0:05:51]} h5 {[%emt 0:05:19]} 24. h4 {[%emt 0:02:17]} Bh3 {[%emt 0:04:35] The position is equal.} 25. Qf4 {[%emt 0:02:02]} Bxg2 {[%emt 0:01:21]} 26. Kxg2 {[%emt 0:00:06]} Ng4 {[%emt 0:00:14]} 27. bxc6 {[%emt 0:04:06]} bxc6 {[%emt 0:00:17]} 28. Rb1 {[%emt 0:01:28]} Qc8 {[%emt 0:01:26]} 29. Ne2 {[%emt 0:15:04]} f6 {[%emt 0:11:49]} (29... Rxe2 $2 30. Rb8 Qxb8 31. Qxb8+ Kh7 32. Qxa7 Rxf2+ 33. Kg1 $18) 30. Nc3 {[%emt 0:01:20]} Kh7 {[%emt 0:02:29]} 31. Rb2 {[%emt 0:01:52]} Qa6 {[%emt 0:05:22]} 32. Rb8 {[%emt 0:03:40]} Rxb8 $1 {[%emt 0:00:13]} (32... Re1 {leads to mate.} 33. Qf5+ g6 34. Qd7+) 33. Qxb8 $11 {[%emt 0:00:03][%mdl 4096] Endgame KQN-KQN} Qd3 {[%emt 0:12:03][%csl LRc3,LRd4]} 34. Qb1 {[%emt 0:00:18]} Qxb1 {[%emt 0:00:09]} 35. Nxb1 {[%emt 0:00:02] KN-KN} g5 {[%emt 0:00:49]} 36. Nd2 {[%emt 0:09:37] [#] Threatens to win with Nb3.} gxh4 {[%emt 0:02:26]} 37. gxh4 {[%emt 0:00:02] aiming for Nb3.} Nh6 $1 {[%emt 0:00:06]} 38. Nb3 {[%emt 0:02:24]} Nf5 {[%emt 0:00:14]} 39. Kf3 {[%emt 0:00:23]} Nxh4+ {[%emt 0:01:56]} 40. Kf4 $1 {[%emt 0:00:26]} Kg7 {[%emt 0:02:39]} 41. Na5 $1 {[%emt 0:03:51]} Ng6+ {[%emt 0:00:16]} 42. Kf5 {[%emt 0:02:30]} h4 {[%emt 0:03:36] [#] White must now prevent ...h3.} 43. Kg4 {[%emt 0:04:19]} ({But not} 43. Nxc6 $2 h3 44. Ke6 h2 $19) 43... Ne7 {[%emt 0:00:11]} 44. Kxh4 {[%emt 0:12:39]} Nf5+ {[%emt 0:00:20]} 45. Kg4 $1 {[%emt 0:00:27]} Nxd4 {[%emt 0:00:06]} 46. Kf4 {[%emt 0:00:23]} Kf7 {[%emt 0:07:28]} 47. Ke3 {[%emt 0:00:21]} Nf5+ {[%emt 0:00:05]} 48. Kf4 $1 {[%emt 0:00:09]} Ne7 {[%emt 0:00:07]} 49. Nb3 {[%emt 0:00:56]} Kg6 {[%emt 0:01:59]} 50. Nd4 {[%emt 0:01:35]} Kh5 {[%emt 0:00:09]} 51. Ne6 {[%emt 0:00:45]} Kh4 {[%emt 0:04:47]} 52. Nf8 {[%emt 0:01:00]} Kh3 {[%emt 0:00:06]} 53. Nd7 {[%emt 0:00:18]} Kg2 {[%emt 0:02:56] ...f5 is the strong threat.} 54. Nxf6 {[%emt 0:00:20]} Kxf2 {[%emt 0:00:05]} 55. Ke5 {[%emt 0:01:38]} Ke3 {[%emt 0:04:32] Strongly threatening ...d4.} 56. Kd6 {[%emt 0:00:20]} d4 {[%emt 0:01:01][%cal Od4d3] And now ...d3! would win.} 57. Ng4+ {[%emt 0:02:28]} Kf3 {[%emt 0:03:50]} 58. Ne5+ {[%emt 0:00:56]} Ke4 {[%emt 0:00:16] Hoping for ...Nf5+.} 59. Nc4 {[%emt 0:00:42]} d3 {[%emt 0:01:22]} 60. Kxe7 {[%emt 0:03:04] KN-K3P} Kd5 {[%emt 0:00:06][%csl LRc4,LRc5]} 61. Nb2 {[%emt 0:00:28]} d2 {[%emt 0:00:06]} 62. Kf6 {[%emt 0:00:21]} a5 {[%emt 0:02:30]} 63. Nd1 {[%emt 0:01:27]} Kxc5 {[%emt 0:00:37]} 64. Ke5 {[%emt 0:00:02]} Kb4 {[%emt 0:00:40]} 65. Kd4 {[%emt 0:00:06]} Kxa4 {[%emt 0:00:12]} 66. Kc3 {[%emt 0:00:03]} c5 {[%emt 0:00:05]} 67. Nb2+ {[%emt 0:00:49] A balanced but interesting game.  Weighted Error Value: White=0.03 (flawless) /Black=0.02 (flawless)} 1/2-1/2